bitfinex/quotes_ETHUSD_20240828
["timestamp","ask_amount","ask_price","bid_price","bid_amount"]
[1724854031295,3.98812,2507.5,2506.9,23.54884]
[1724854031484,0.09971567,2507.4,2506.9,23.54884]
[1724854031795,8.07619567,2507.4,2506.9,19.56]
[1724854032221,4.08791567,2507.4,2506.9,23.54894]
[1724854032385,3.98797,2507.6,2506.9,25.903861]
[1724854032586,3.98817,2507.5,2506.9,23.54888]
[1724854032812,4.08792572,2507.4,2506.9,19.56]
[1724854033128,3.98843,2507.3,2506.9,19.56]
[1724854033322,4.08750922,2507.7,2507.0,3.98881]
[1724854033537,3.98796,2507.6,2507.0,3.98881]
[1724854033715,3.98796,2507.6,2507.0,7.97753]
[1724854034087,3.98796,2507.6,2507.0,3.98872]
[1724854034313,3.0,2507.8,2507.0,3.98872]
[1724854034314,3.98805,2507.5,2507.0,23.54872]
[1724854034516,4.08793768,2507.4,2507.0,19.56]
[1724854034712,3.98853,2507.2,2507.0,19.56]
[1724854034927,3.98891,2507.0,2506.5,19.56]
[1724854035753,6.29456,2507.5,2506.4,12.795673]
[1724854035754,0.0997264,2506.9,2506.4,7.37]
[1724854035904,0.09972757,2507.3,2506.7,3.98915]
[1724854036103,4.08812757,2507.3,2506.8,3.98914]
[1724854036309,6.98834,2507.4,2506.6,3.9893]
[1724854036310,4.08827757,2507.2,2506.6,3.9893]
[1724854036542,3.0,2507.4,2506.6,3.9893]
[1724854036543,0.09972756,2507.3,2506.6,0.07892131]
[1724854036760,4.08817756,2507.3,2506.7,3.9892]
[1724854037063,0.53287848,2508.3,2507.0,3.98874]
[1724854037064,3.98796,2507.6,2507.0,3.98874]
[1724854037258,3.98796,2507.6,2507.0,3.98867]
[1724854037404,0.09970921,2507.7,2507.1,3.98856]
[1724854037749,3.98797,2507.6,2506.9,25.95213]
[1724854037920,0.09970921,2507.7,2506.9,32.536263]
[1724854038120,3.98796,2507.6,2506.9,28.547383]
[1724854038312,0.09970921,2507.7,2507.0,0.07886866]
[1724854038512,3.98801,2507.6,2507.1,3.98852]
[1724854038853,0.09970563,2507.7,2507.1,3.98852]
[1724854039021,0.09969909,2507.9,2507.3,3.98826]
[1724854039220,0.09969955,2508.1,2507.6,3.98777]
[1724854039609,3.98701,2508.2,2507.7,3.98762]
[1724854039810,0.0996869,2508.1,2507.4,19.56]
[1724854040126,3.98686,2508.3,2507.4,19.56]
[1724854040327,3.98686,2508.3,2507.5,5.94388]
[1724854040328,3.98708,2508.1,2507.5,5.94388]
[1724854040522,0.09969166,2508.0,2507.6,3.98785]
[1724854041055,0.09969167,2508.0,2507.4,19.56]
[1724854041221,3.98715,2508.1,2507.6,3.98774]
[1724854041428,0.09968687,2508.2,2507.7,3.98761]
[1724854041643,3.09968687,2508.2,2507.7,7.97522]
[1724854041842,0.09967972,2508.4,2508.0,7.97434]
[1724854042025,3.9861,2508.8,2508.0,7.97426]
[1724854042026,3.98632,2508.6,2508.0,7.97426]
[1724854042229,2.437,2509.5,2508.3,3.98671]
[1724854042515,2.437,2509.5,2508.2,2.4855]
[1724854042516,3.98527,2509.3,2508.7,3.98598]
[1724854042748,0.09964147,2509.2,2508.8,0.10827836]
[1724854042944,3.98563,2509.1,2508.8,0.10827836]
[1724854043149,3.98563,2509.1,2508.3,3.98666]
[1724854043150,3.98581,2508.9,2508.3,3.98666]
[1724854043309,0.09965701,2508.8,2508.4,3.98656]
[1724854043512,6.90990066,2509.8,2508.6,3.98627]
[1724854043513,0.09965701,2509.0,2508.6,3.98627]
[1724854043823,7.97055,2509.3,2508.7,4.06485095]
[1724854044040,0.09964266,2509.2,2508.7,4.3926051]
[1724854044240,3.98526,2509.3,2508.7,8.05095755]
[1724854044547,7.97056,2509.3,2508.7,4.06473755]
[1724854044752,7.97056,2509.3,2508.5,3.98635]
[1724854044753,4.08498267,2509.2,2508.6,0.07871756]
[1724854044912,0.09964267,2509.2,2508.6,0.07871756]
[1724854045226,3.98526,2509.3,2508.7,3.98611]
[1724854045424,0.09964271,2509.4,2508.8,0.07871766]
[1724854045624,0.09964271,2509.4,2508.9,3.98569]
[1724854045825,0.09964271,2509.4,2508.5,3.98637]
[1724854046039,0.09964271,2509.4,2508.2,2.4855]
[1724854046040,3.9855,2509.1,2508.3,0.07873941]
[1724854046240,6.42142,2509.8,2508.7,2.2885]
[1724854046241,0.09963726,2509.7,2508.7,2.2885]
[1724854046549,0.09963726,2509.7,2508.9,3.98571]
[1724854046550,3.98496,2509.5,2508.9,3.98571]
[1724854046721,3.98411,2510.0,2509.0,0.07868077]
[1724854046926,0.05,2511.5,2509.5,3.98476]
[1724854046927,3.9839,2510.1,2509.5,3.98476]
[1724854047115,3.98415,2510.0,2509.4,3.9849]
[1724854047316,3.98415,2510.0,2509.5,0.07864235]
[1724854047513,7.96834,2510.0,2509.5,0.07864235]
[1724854047712,3.98403,2510.1,2509.5,4.06349235]
[1724854047953,0.45716483,2510.9,2509.8,3.98425]
[1724854047954,4.08311135,2510.4,2509.8,3.98425]
[1724854048159,0.09432336,2510.4,2509.8,3.98425]
[1724854048459,0.0995871,2510.5,2509.8,3.98429]
[1724854048621,3.98365,2510.3,2509.6,4.78947924]
[1724854048965,0.0995871,2510.5,2509.6,4.78947924]
[1724854048966,4.08294567,2510.5,2509.8,3.98425]
[1724854049271,3.98379,2510.2,2509.6,0.80483924]
[1724854049435,0.09960705,2510.1,2509.5,4.06438564]
[1724854049626,3.98379,2510.2,2509.5,4.06438564]
[1724854049963,0.09960579,2510.4,2509.5,0.07968564]
[1724854050143,3.98314,2510.6,2510.1,3.98386]
[1724854050343,4.08266825,2510.7,2510.0,0.0796706]
[1724854050549,0.09958706,2510.6,2510.0,0.0796706]
[1724854050749,3.98339,2510.5,2509.7,3.98444]
[1724854050927,3.98368,2510.3,2509.8,0.07967919]
[1724854051238,3.9825,2511.0,2509.4,2.4148]
[1724854051239,3.98397,2510.1,2509.4,2.4148]
[1724854051558,3.98368,2510.3,2509.6,3.98459]
[1724854051764,3.98375,2510.2,2509.7,4.89321621]
[1724854051923,3.98368,2510.3,2509.8,0.0796795]
[1724854052122,3.0,2510.6,2509.5,0.24148]
[1724854052123,0.09959914,2510.2,2509.5,0.32115931]
[1724854052345,4.3984478,2511.7,2509.4,2.4148]
[1724854052346,3.98425,2509.9,2509.4,2.4148]
[1724854052548,3.98363,2510.3,2509.1,3.9854]
[1724854052549,3.98467,2509.7,2509.1,3.9854]
[1724854052867,3.98463,2509.7,2509.2,0.47823387]
[1724854053123,4.08359608,2510.1,2509.5,3.9847]
[1724854053273,3.0,2510.2,2509.2,0.47823387]
[1724854053274,3.98367,2510.3,2509.6,0.07968584]
[1724854053449,3.98391,2510.1,2509.6,0.07968584]
[1724854053939,3.98327,2510.5,2509.9,3.98412]
[1724854054274,3.98321,2510.6,2510.0,20.03808293]
[1724854054570,3.98317,2510.6,2510.0,4.06363093]
[1724854054775,3.98328,2510.5,2510.0,4.06364093]
[1724854054933,3.98264,2510.9,2510.0,2.44203402]
[1724854055128,3.98316,2510.6,2510.0,6.42608402]
[1724854055443,3.98316,2510.6,2510.1,6.1841034]
[1724854055643,3.98316,2510.6,2510.1,6.26367225]
[1724854055854,4.08215599,2511.0,2510.3,3.9835]
[1724854056063,4.08215599,2511.0,2510.4,6.36305975]
[1724854056230,3.98225,2511.2,2510.5,3.98316]
[1724854056434,3.98225,2511.2,2510.6,0.07965115]
[1724854056672,3.98279,2510.8,2510.5,0.63630597]
[1724854056904,3.98272,2510.9,2510.5,0.07965598]
[1724854057049,3.98254,2511.0,2510.4,2.3]
[1724854057050,3.98254,2511.0,2510.4,2.37965598]
[1724854057255,3.98254,2511.0,2510.5,4.611598]
[1724854057784,3.98264,2510.9,2510.6,0.10374124]
[1724854057988,3.98254,2511.0,2510.6,0.10374124]
[1724854057989,7.96515,2511.0,2510.6,0.10374124]
[1724854058287,4.08179999,2511.2,2510.6,0.10374124]
[1724854058449,3.98194,2511.4,2510.7,0.07965177]
[1724854058792,3.98201,2511.3,2510.7,4.08653184]
[1724854058964,0.09954938,2511.2,2510.7,0.10368184]
[1724854059169,3.98339,2510.5,2509.9,3.98417]
[1724854059377,3.98263,2510.9,2510.8,0.10167564]
[1724854059577,3.98355,2510.4,2510.0,2.3768]
[1724854059781,3.98374,2510.3,2510.0,2.3768]
[1724854059945,3.98306,2510.7,2510.2,3.98368]
[1724854060151,0.09957771,2511.1,2510.4,3.98331]
[1724854060452,3.98306,2510.7,2510.5,0.10185382]
[1724854060698,3.9828,2510.8,2510.5,0.10185382]
[1724854060986,3.98248,2511.0,2510.5,0.10185382]
[1724854061199,0.0995607,2511.2,2510.5,0.5103732]
[1724854061367,3.98308,2510.7,2510.5,0.10185382]
[1724854061565,3.0,2511.4,2510.5,0.10185382]
[1724854061566,7.96622,2510.6,2510.5,0.10185382]
[1724854061787,7.96622,2510.6,2510.0,6.59844]
[1724854061788,3.9835,2510.4,2510.0,2.61448]
[1724854062002,3.98265,2510.9,2510.5,0.10185382]
[1724854062187,3.98265,2510.9,2510.2,3.98373]
[1724854062188,3.98265,2510.9,2510.4,3.98333]
[1724854062372,3.98279,2510.8,2510.6,0.10179443]
[1724854062569,3.98235,2511.1,2510.5,0.10185382]
[1724854062901,0.09957924,2511.0,2510.0,2.61448]
[1724854063118,3.98365,2510.3,2510.0,2.61448]
[1724854063256,0.09958893,2510.7,2510.1,0.261448]
[1724854063461,3.0,2511.1,2510.0,2.61448]
[1724854063462,0.09957442,2511.0,2510.0,2.61448]
[1724854063707,3.98312,2510.6,2510.0,2.61448]
[1724854064009,4.08213101,2511.0,2510.1,25.61525524]
[1724854064154,3.98226,2511.2,2510.6,6.23704]
[1724854064374,6.98158,2511.6,2510.6,2.254]
[1724854064375,0.09955856,2511.1,2510.6,2.254]
[1724854064592,3.98311,2510.6,2510.2,2.254]
[1724854064896,3.98319,2510.6,2510.2,2.254]
[1724854065104,3.98319,2510.6,2510.2,3.3023368]
[1724854065301,0.0995832,2510.7,2510.2,2.254]
[1724854065459,3.98249,2511.0,2509.8,2.254]
[1724854065460,3.98393,2510.1,2509.8,2.254]
[1724854065808,3.98314,2510.6,2509.4,2.254]
[1724854065809,3.98422,2509.9,2509.4,2.254]
[1724854065973,0.09959797,2510.0,2509.5,4.0645253]
[1724854065974,3.98408,2510.0,2509.5,4.0645253]
[1724854066171,3.98377,2510.2,2509.7,3.98449]
[1724854066377,3.98337,2510.5,2509.8,0.07968056]
[1724854066699,3.98382,2510.2,2509.8,0.07968056]
[1724854067205,7.96795,2510.1,2509.6,4.61644253]
[1724854067368,3.98415,2510.0,2509.5,0.07968446]
[1724854067555,3.9847,2509.6,2509.0,3.98554]
[1724854067752,3.9847,2509.6,2509.0,2.254]
[1724854067753,3.98509,2509.4,2509.0,2.254]
[1724854068406,3.98479,2509.6,2509.0,7.5752738]
[1724854068407,7.96959,2509.6,2509.0,7.5752738]
[1724854068556,3.98479,2509.6,2509.0,11.5608238]
[1724854068752,3.98479,2509.6,2509.0,7.5752738]
[1724854069194,3.98479,2509.6,2509.0,3.5897338]
[1724854069400,3.98413,2510.0,2508.5,3.98633]
[1724854069401,4.0845171,2509.5,2508.5,3.98633]
[1724854069605,3.98605,2508.8,2508.5,0.837321]
[1724854069754,3.98623,2508.7,2508.4,2.448]
[1724854069958,3.98605,2508.8,2508.1,4.0667953]
[1724854070206,3.98605,2508.8,2508.3,3.98674]
[1724854070411,3.98605,2508.8,2508.1,4.63820899]
[1724854070412,3.98571,2509.0,2508.4,0.07972531]
[1724854070557,3.98558,2509.1,2508.2,1.35975224]
[1724854070759,3.9853,2509.3,2508.7,2.448]
[1724854071100,4.08468556,2509.4,2508.8,4.06558844]
[1724854071285,3.98522,2509.3,2508.8,3.98588]
[1724854071594,0.09963556,2509.4,2508.8,3.98588]
[1724854071595,4.08465556,2509.4,2508.8,9.10138631]
[1724854071805,3.98494,2509.5,2508.8,9.10138631]
[1724854071806,4.0845731,2509.5,2508.8,5.11551631]
[1724854072019,3.98502,2509.4,2508.9,3.9858]
[1724854072198,3.98502,2509.4,2508.9,5.22043528]
[1724854072512,3.98494,2509.5,2508.9,1.23463534]
[1724854072831,3.98494,2509.5,2509.0,0.10494482]
[1724854072989,2.3476,2510.6,2509.1,2.41620181]
[1724854073309,2.3476,2510.6,2509.0,4.61256135]
[1724854073310,3.98521,2509.3,2509.0,0.62699135]
[1724854073472,3.98521,2509.3,2509.2,0.10456566]
[1724854073473,8.06997569,2509.3,2509.2,0.10456566]
[1724854073672,8.06997569,2509.3,2508.7,2.3365]
[1724854073673,4.08492569,2509.3,2509.1,0.10462513]
[1724854073907,3.98517,2509.3,2509.2,0.10456566]
[1724854074213,3.98517,2509.3,2508.8,4.29919876]
[1724854074383,4.08509959,2509.2,2508.7,2.3365]
[1724854074578,3.98517,2509.3,2508.7,2.41621167]
[1724854074776,3.98517,2509.3,2508.7,7.04254084]
[1724854075306,0.09964237,2509.2,2508.7,2.31249954]
[1724854075519,3.98539,2509.2,2508.7,2.31249954]
[1724854075677,4.08521876,2509.1,2508.7,2.31249954]
[1724854075871,3.98574,2509.0,2508.7,2.31249954]
[1724854076123,0.09964875,2508.9,2508.4,26.93]
[1724854076273,7.97086,2509.2,2508.6,3.98619]
[1724854076473,3.98565,2509.0,2508.5,3.98641]
[1724854076678,3.98503,2509.4,2508.5,3.14217995]
[1724854076919,0.09963953,2509.5,2508.6,9.70037686]
[1724854077211,0.09807085,2509.5,2508.9,3.98567]
[1724854077415,3.09962828,2509.6,2509.1,7.97087]
[1724854077621,2.3981,2510.4,2509.3,3.98514]
[1724854077622,3.98409,2510.0,2509.3,3.98514]
[1724854077817,0.09962055,2509.9,2509.2,19.56]
[1724854078021,3.98486,2509.5,2509.2,19.56]
[1724854078182,0.09962055,2509.9,2509.2,19.56]
[1724854078183,3.98463,2509.7,2509.2,19.56]
[1724854078514,0.09963321,2509.6,2509.2,19.56]
[1724854078721,3.98433,2509.9,2509.2,22.898658]
[1724854078878,3.09962413,2509.8,2509.3,3.98515]
[1724854079079,4.08402413,2509.8,2509.3,6.2750158]
[1724854079279,0.09962413,2509.8,2509.3,6.2750158]
[1724854079474,0.09962413,2509.8,2509.3,10.2600758]
[1724854079709,3.09962413,2509.8,2509.4,3.985]
[1724854079976,0.09962413,2509.8,2509.5,3.98483]
[1724854080176,0.09962413,2509.8,2509.3,6.2749258]
[1724854080177,3.0,2509.9,2509.6,3.98463]
[1724854080421,0.0996114,2510.1,2509.6,3.98463]
[1724854080930,0.41707239,2511.1,2509.7,2.467]
[1724854081233,3.98361,2510.3,2509.8,30.91424]
[1724854081523,3.9841,2510.0,2509.7,22.027]
[1724854081729,0.09961252,2510.1,2509.7,22.027]
[1724854082427,0.09961252,2510.2,2509.8,3.9843]
[1724854082720,0.09961252,2510.3,2510.0,3.98402]
[1724854082882,0.09961252,2510.3,2509.7,22.027]
[1724854083081,0.09960459,2510.3,2509.8,7.96855]
[1724854083354,0.41704039,2511.4,2509.8,7.96855]
[1724854083355,3.98293,2510.8,2510.3,3.9835]
[1724854083691,3.98255,2511.0,2510.3,3.9835]
[1724854083692,0.0995851,2510.9,2510.5,3.98315]
[1724854083824,2.2711,2511.6,2510.8,3.98273]
[1724854083825,3.98191,2511.4,2510.8,3.98273]
[1724854084017,0.09956814,2511.5,2511.2,3.98215]
[1724854084018,0.09956287,2511.5,2511.2,3.98215]
[1724854084318,0.09956287,2511.5,2511.0,6.27924]
[1724854084521,0.09956287,2511.5,2511.0,2.2969]
[1724854084522,3.98202,2511.3,2511.0,2.2969]
[1724854084717,3.98172,2511.5,2510.9,19.56]
[1724854084718,0.09956197,2511.2,2510.9,19.56]
[1724854084937,3.98172,2511.5,2510.9,19.56]
[1724854084938,0.09956197,2511.4,2510.9,19.56]
[1724854085144,4.08143197,2511.4,2510.9,19.56]
[1724854085463,10.96291,2511.7,2511.1,3.98222]
[1724854085622,0.09954709,2511.6,2511.1,3.98221]
[1724854085957,0.09954705,2511.8,2511.3,3.98186]
[1724854086164,4.08077705,2511.8,2511.2,19.56]
[1724854086324,3.98154,2511.6,2511.2,19.56]
[1724854086521,3.98214,2511.3,2510.7,9.6669]
[1724854086717,3.98214,2511.3,2509.5,4.80820907]
[1724854086718,3.98312,2510.6,2509.9,21.9649]
[1724854086924,0.09956302,2511.2,2509.5,21.9649]
[1724854086925,3.98374,2510.2,2509.5,21.9649]
[1724854087222,4.08305675,2510.4,2509.7,3.9844]
[1724854087462,3.98326,2510.6,2509.8,0.48608404]
[1724854087616,3.09959438,2510.5,2509.8,0.0796755]
[1724854087822,3.98345,2510.4,2509.9,0.10284935]
[1724854088020,0.09960434,2510.3,2509.9,0.10284935]
[1724854088222,0.09960434,2510.3,2509.9,3.9842]
[1724854088420,3.099598,2510.5,2510.0,0.10278992]
[1724854088728,3.099598,2510.5,2510.0,4.08683992]
[1724854089062,6.23883,2511.0,2510.1,4.06347551]
[1724854089063,3.98288,2510.8,2510.1,4.06347551]
[1724854089220,0.09957838,2510.9,2510.3,3.98349]
[1724854089420,0.09957838,2510.9,2510.3,4.06315079]
[1724854089728,7.96449,2511.2,2510.4,0.10255226]
[1724854090070,0.0995626,2511.2,2510.5,19.56]
[1724854090220,4.0818026,2511.2,2510.5,25.51736023]
[1724854090422,4.0818026,2511.2,2510.6,0.10243346]
[1724854090622,4.0818026,2511.2,2510.6,0.18208798]
[1724854090925,8.0640826,2511.2,2510.6,2.7520328]
[1724854091152,0.0995626,2511.2,2510.6,0.10243346]
[1724854091337,3.98288,2510.8,2510.6,0.10243346]
[1724854091722,8.06547793,2510.7,2510.6,0.10243346]
[1724854091920,11.06547793,2510.7,2510.6,0.10243346]
[1724854092219,7.9659,2510.7,2510.6,0.10243346]
[1724854092420,3.98295,2510.7,2510.6,0.10243346]
[1724854092862,7.9659,2510.7,2510.6,0.10243346]
[1724854093159,4.08253477,2510.7,2510.6,0.10243346]
[1724854093660,11.06548477,2510.7,2510.6,0.10243346]
[1724854093820,15.04843477,2510.7,2510.6,0.10243346]
[1724854094025,3.98331,2510.5,2509.7,11.35453]
[1724854094222,3.98331,2510.5,2509.9,5.03829389]
[1724854094223,0.09959237,2510.5,2509.9,5.03829389]
[1724854094518,3.98256,2511.0,2510.3,3.98357]
[1724854094718,4.08221889,2510.9,2510.4,0.398357]
[1724854095019,3.98286,2510.8,2510.4,0.50061185]
[1724854095225,4.08221889,2510.9,2510.4,0.10225485]
[1724854095226,3.98264,2510.9,2510.4,0.10225485]
[1724854095450,3.98238,2511.1,2510.5,2.3251]
[1724854095654,3.98238,2511.1,2510.6,3.98308]
[1724854095820,4.08157257,2511.3,2510.7,0.07965006]
[1724854096025,3.98175,2511.5,2510.8,3.9827]
[1724854096276,4.08149916,2511.4,2510.9,19.56]
[1724854096562,3.98195,2511.4,2510.9,19.56]
[1724854096726,3.98195,2511.4,2511.0,0.1018985]
[1724854097062,4.08149913,2511.4,2511.0,0.1018985]
[1724854097261,0.46976989,2512.1,2511.0,0.1018985]
[1724854097262,4.08158367,2511.3,2511.0,0.1018985]
[1724854097566,4.08129099,2511.5,2511.0,0.1018985]
[1724854097775,3.98221,2511.2,2511.0,0.1018985]
[1724854098510,8.06418367,2511.1,2511.0,0.1018985]
[1724854100097,0.09956367,2511.1,2510.5,2.3251]
[1724854100310,3.98273,2510.9,2510.5,2.3251]
[1724854100798,3.98272,2510.9,2510.5,2.3251]
[1724854101007,3.98281,2510.8,2510.5,2.3251]
[1724854101216,3.98358,2510.3,2510.2,7.37]
[1724854101362,0.09959644,2510.6,2510.1,19.56]
[1724854101682,3.98344,2510.4,2510.1,19.56]
[1724854101888,3.98342,2510.5,2510.1,19.56]
[1724854101889,4.08300992,2510.5,2510.1,19.56]
[1724854102274,3.09958679,2510.6,2510.1,21.914412]
[1724854102591,0.09958669,2510.6,2510.1,19.56]
[1724854102794,3.9832,2510.6,2510.1,19.56]
[1724854102963,4.08245539,2510.8,2510.1,19.56]
[1724854102964,0.09958666,2510.7,2510.2,4.08587829]
[1724854103297,3.98352,2510.4,2510.2,0.10215829]
[1724854103506,0.09958666,2510.7,2510.2,0.10215829]
[1724854103507,0.09959028,2510.7,2510.2,0.10215829]
[1724854103802,0.09958611,2510.9,2510.3,2.3295]
[1724854104000,2.04300496,2511.3,2510.6,3.98301]
[1724854104001,0.09957025,2511.1,2510.6,3.98301]
[1724854104299,8.06432025,2511.1,2510.7,0.89847527]
[1724854104602,4.08190025,2511.1,2510.7,0.10186127]
[1724854104808,3.98218,2511.2,2510.7,4.06259429]
[1724854105105,3.98218,2511.2,2510.8,0.10180188]
[1724854105106,3.98235,2511.1,2510.8,0.10180188]
[1724854105311,3.98209,2511.3,2510.8,0.10180188]
[1724854105668,3.98171,2511.5,2510.8,2.47424116]
[1724854105944,0.09956004,2511.4,2510.9,2.3856]
[1724854106247,3.982,2511.3,2511.0,0.10163115]
[1724854106802,2.04401638,2511.9,2511.1,3.98231]
[1724854106803,3.98155,2511.6,2511.1,3.98231]
[1724854107044,7.08122931,2511.5,2511.2,0.1015124]
[1724854107342,3.0,2511.5,2511.2,0.1015124]
[1724854107641,0.09954931,2511.6,2511.3,0.10145303]
[1724854107642,7.08118931,2511.6,2511.3,0.10145303]
[1724854107851,3.09954931,2511.6,2511.1,3.98229]
[1724854108029,3.09954931,2511.6,2511.0,4.31072259]
[1724854108030,3.09954931,2511.6,2511.4,0.10139367]
[1724854108235,3.09954931,2511.6,2511.0,4.23108312]
[1724854108236,3.09954931,2511.6,2511.0,4.31072254]
[1724854108409,0.09954931,2511.6,2511.5,0.10133431]
[1724854108609,6.98113,2511.9,2511.3,3.98189]
[1724854108817,0.09954061,2511.9,2511.4,0.18102616]
[1724854109042,4.08059061,2511.9,2511.4,0.10139367]
[1724854109215,0.09954061,2511.9,2511.5,3.98168]
[1724854109546,3.9808,2512.1,2511.5,6.51131431]
[1724854109547,0.09953645,2512.0,2511.5,6.51131431]
[1724854109743,0.09953645,2512.0,2511.5,6.51122431]
[1724854109953,0.09953645,2512.0,2511.5,11.40429805]
[1724854110159,0.09953645,2512.0,2511.5,7.50233386]
[1724854110451,0.09953645,2512.0,2511.5,11.48392386]
[1724854110657,0.09953645,2512.0,2511.6,3.98144]
[1724854110943,0.0995283,2512.1,2511.6,4.08271496]
[1724854111142,0.0995283,2512.1,2511.7,0.65199477]
[1724854111654,0.0995283,2512.1,2511.8,0.10115627]
[1724854111860,0.0995283,2512.1,2511.7,4.63332477]
[1724854111861,4.0801983,2512.2,2511.7,4.63332477]
[1724854112008,4.0801983,2512.2,2511.9,0.10109693]
[1724854112205,4.07948827,2512.6,2512.0,3.98076]
[1724854112508,3.98057,2512.2,2512.1,0.10097827]
[1724854112826,7.96108,2512.3,2511.5,25.96984]
[1724854113135,4.08010274,2512.2,2512.1,0.10097827]
[1724854113340,4.08010274,2512.2,2511.7,7.96249]
[1724854113341,0.09952274,2512.2,2511.7,7.96249]
[1724854113652,0.09952277,2512.3,2511.9,3.98094]
[1724854113824,0.09952277,2512.3,2511.9,7.96188]
[1724854114031,4.07994277,2512.3,2511.8,0.10115627]
[1724854114211,4.07994277,2512.3,2512.0,0.1010376]
[1724854114561,0.09952277,2512.3,2511.7,0.07961702]
[1724854114709,0.09952277,2512.3,2512.1,0.10097827]
[1724854114913,0.0995194,2512.4,2512.0,3.98079]
[1724854115111,0.09951895,2512.5,2512.2,0.10091895]
[1724854115311,0.09951516,2512.7,2512.3,3.98029]
[1724854115547,0.09951516,2512.7,2512.3,4.08114963]
[1724854115763,3.97955,2512.9,2512.3,4.08114963]
[1724854115764,0.09950781,2513.0,2512.6,3.97992]
[1724854115913,0.22185238,2513.1,2512.7,3.97975]
[1724854116111,0.122358,2513.1,2512.8,3.97961]
[1724854116420,0.122358,2513.1,2513.0,7.9586]
[1724854116625,0.122358,2513.1,2513.0,27.59817191]
[1724854116846,0.122358,2513.1,2513.0,33.85267191]
[1724854117151,0.122358,2513.1,2513.0,14.94202537]
[1724854117357,2.3651,2514.4,2513.0,14.94202537]
[1724854117358,3.97644,2514.9,2514.0,6.30209]
[1724854117515,3.97644,2514.9,2514.2,3.97738]
[1724854117516,0.0994275,2514.8,2514.2,3.97738]
[1724854117849,3.97673,2514.7,2514.3,0.09858317]
[1724854118057,3.97572,2515.3,2514.0,6.30221]
[1724854118058,4.07569462,2515.0,2514.2,3.97729]
[1724854118216,3.97648,2514.8,2514.4,0.09852395]
[1724854118417,0.54598985,2514.7,2513.8,6.34887]
[1724854118759,3.97684,2514.6,2514.0,3.97766]
[1724854118915,3.97688,2514.6,2514.1,0.397766]
[1724854119109,0.09942588,2514.5,2514.1,0.09870162]
[1724854119329,3.9765,2514.8,2514.1,3.97749]
[1724854119610,4.07592428,2514.8,2514.2,4.87150839]
[1724854119814,4.07606428,2514.7,2514.2,0.89415839]
[1724854120048,7.95245,2515.0,2514.3,3.97721]
[1724854120250,3.97646,2514.8,2514.2,4.07602239]
[1724854120450,3.97621,2515.0,2514.4,4.07546395]
[1724854120751,3.97687,2514.6,2514.3,0.50618541]
[1724854120915,3.97687,2514.6,2513.8,6.746627]
[1724854120916,3.97649,2514.8,2514.5,0.09846473]
[1724854121252,2.3472,2515.5,2514.6,0.09840552]
[1724854121253,4.07529887,2515.2,2514.6,0.09840552]
[1724854121455,4.07495007,2515.4,2514.8,3.97642]
[1724854121672,4.097618,2515.6,2514.9,0.07951688]
[1724854121673,3.97536,2515.5,2514.9,0.07951688]
[1724854121953,4.097618,2515.6,2514.9,0.07951688]
[1724854121954,0.122358,2515.6,2515.0,2.2537]
[1724854122139,0.122358,2515.6,2515.3,3.97565]
[1724854122352,0.122358,2515.6,2515.5,10.4106]
[1724854122517,0.122358,2515.6,2515.5,17.93595]
[1724854122718,0.122358,2515.6,2515.5,20.4012356]
[1724854123149,0.01110159,2515.6,2515.5,20.4012356]
[1724854123319,3.97467,2516.0,2515.5,2.55290278]
[1724854123519,2.37023516,2516.8,2515.5,0.09300278]
[1724854123520,4.07410971,2515.9,2515.5,0.09300278]
[1724854123759,3.97519,2515.6,2515.5,0.09300278]
[1724854124074,3.97532,2515.6,2515.2,0.07951375]
[1724854124250,3.97493,2515.8,2515.2,0.31993644]
[1724854124419,3.9747,2516.0,2515.3,3.97556]
[1724854124618,3.97322,2516.9,2515.2,0.31993644]
[1724854124619,4.07334866,2516.4,2515.7,3.97491]
[1724854124852,3.97393,2516.4,2515.8,0.08462061]
[1724854125081,0.09935889,2516.7,2515.8,0.08462061]
[1724854125082,4.07296889,2516.7,2515.8,0.07948195]
[1724854125307,4.07227048,2517.1,2516.0,2.3126]
[1724854125455,2.2942,2518.0,2516.8,3.97329]
[1724854125456,4.07160616,2517.5,2516.8,3.97329]
[1724854125651,4.07134321,2517.6,2517.0,2.3126]
[1724854125861,3.97192,2517.7,2517.1,0.07945087]
[1724854126167,3.97266,2517.2,2517.1,0.08385203]
[1724854126680,3.97266,2517.2,2516.3,2.4573]
[1724854126681,3.97365,2516.6,2516.3,2.4573]
[1724854127057,3.97365,2516.6,2516.4,0.08426579]
[1724854127410,0.09934018,2517.1,2516.4,0.08426579]
[1724854127411,3.97311,2517.0,2516.4,0.1637396]
[1724854127557,3.97251,2517.3,2516.6,3.97349]
[1724854127758,3.97248,2517.4,2516.7,0.07945445]
[1724854127956,3.97253,2517.3,2516.7,0.16354289]
[1724854128206,0.09932402,2517.7,2516.7,0.08408844]
[1724854128356,3.97244,2517.4,2516.7,0.16353478]
[1724854128580,3.97388,2516.5,2516.3,2.4573]
[1724854129032,3.97348,2516.7,2516.3,2.4573]
[1724854129193,3.97256,2517.3,2516.4,0.32519444]
[1724854129393,3.97258,2517.3,2516.6,3.97351]
[1724854129586,4.093748,2518.1,2516.4,4.21954]
[1724854129587,3.97304,2517.0,2516.4,4.21954]
[1724854129788,0.09932464,2517.5,2516.5,0.07945971]
[1724854130031,3.9715,2518.0,2517.3,3.97248]
[1724854130311,3.97172,2517.8,2517.1,6.45582]
[1724854130688,3.97177,2517.8,2517.1,2.4831]
[1724854130887,3.97177,2517.8,2517.2,0.0794371]
[1724854131089,3.97177,2517.8,2517.2,4.0519971]
[1724854131293,0.09929606,2517.9,2517.2,0.0794371]
[1724854131513,0.09929606,2517.9,2517.1,2.73141]
[1724854131514,0.60819383,2518.1,2517.1,6.70415]
[1724854131691,4.07076919,2518.0,2517.2,0.273141]
[1724854131886,0.122358,2518.1,2517.5,3.97208]
[1724854132093,0.122358,2518.1,2517.8,2.3099]
[1724854132378,0.122358,2518.1,2518.0,7.9428]
[1724854132663,3.96878,2519.7,2519.1,3.96965]